Cogmind - Beta 14 @@@ ROGUE MODE // 2025.03.29 @ 21:28:29 Player: SirusTheMadDJ Result: Destroyed by S-10 Pest with Light Assault Rifle Performance ------------- Evolutions (0) 0 Regions Visited (2) 400 Robots Destroyed (18) 90 Value Destroyed (345) 345 Prototype IDs (0) 0 Alien Tech Used (0) 0 Bonus (0) 0 TOTAL SCORE: 835 Bonus ------- None Cogmind --------- Core Integrity 0/250 Matter 293/300 Energy 246/250 System Corruption 0% Temperature Cool (2) Movement Walking (120) Location -10/Mines Parts ------- > --- POWER (1) -------- Ion Engine > --- PROPULSION (2) --- Aluminum Leg Aluminum Leg > --- UTILITY (2) ------ Medium Storage Unit Hacking Suite > --- WEAPON (2) ------- Light Assault Rifle > --- INVENTORY (10) --- Light Treads Light Treads Aluminum Leg Grenade Launcher Peak State ------------ > --- POWER ------------ Ion Engine > --- PROPULSION ------- Aluminum Leg Aluminum Leg > --- UTILITY ---------- Medium Storage Unit Visual Processing Unit > --- WEAPON ----------- Assault Rifle Assault Rifle > --- INVENTORY -------- Ion Engine Light Treads Light Treads Aluminum Leg Aluminum Leg Aluminum Leg Hacking Suite Grenade Launcher [Rating: 9] Favorites ----------- Power Ion Engine Engine Ion Engine Propulsion Aluminum Leg Leg Aluminum Leg Utility Medium Storage Unit Storage Medium Storage Unit Processor Visual Processing Unit Hackware Hacking Suite Weapon Assault Rifle Ballistic Gun Assault Rifle Build | -11 -10 -10 ------- Run | Yrd Mat Min Slots Evolved . | . . . Power . | . . . Propulsion . | . . . Utility . | . . . Weapon . | . . . Parts Attached 21 | 6 15 . Power 5 | 1 4 . Engine 5 | 1 4 . Core . | . . . Reactor . | . . . Propulsion 7 | 2 5 . Treads . | . . . Leg 7 | 2 5 . Wheel . | . . . Hover . | . . . Flight . | . . . Utility 4 | 1 3 . Device . | . . . Storage 2 | 1 1 . Processor 1 | . 1 . Hackware 1 | . 1 . Protection . | . . . Artifact . | . . . Weapon 5 | 2 3 . Energy Gun . | . . . Energy Cannon . | . . . Ballistic Gun 5 | 2 3 . Ballistic Cannon . | . . . Launcher . | . . . Special Weapon . | . . . Impact Weapon . | . . . Slashing Weapon . | . . . Piercing Weapon . | . . . Special Melee Weapon . | . . . Unidentified Prototypes . | . . . Parts Lost 4 | . 4 . Power 1 | . 1 . Propulsion 1 | . 1 . Utility . | . . . Weapon 2 | . 2 . Highest Loss Streak 3 | . 3 . To Critical Strikes . | . . . Average Slot Usage (%) 93 | . 93 85 Engine 12 | . 12 14 Leg 27 | . 27 28 Storage 14 | . 14 14 Processor 9 | . 9 . Hackware 3 | . 3 14 Ballistic Gun 23 | . 24 14 Peak Build Rating 9 | 6 9 8 Average Rating 7 | 4 7 8 On Entrance 4 | . 6 8 Naked Turns . | . . . Heaviest Build 19 | 14 19 16 Greatest Support 20 | 20 20 20 Greatest Overweight (x) 3 | 3 1 . Average Overweight (x) . | . . . Largest Inventory Capacity 10 | 8 10 10 Average Capacity 9 | 7 9 10 Most Carried 8 | 2 8 4 Average Carried 4 | 1 4 4 Final Capacity 10 | 8 10 10 Final Carried 4 | 2 4 4 Class Distribution -------------------- 84% | Mutant 15% | Scavenger-Mutant Dominant Class ---------------- Mutant | -10/Materials Mutant | -10/Mines Resources | -11 -10 -10 ----------- Run | Yrd Mat Min Matter Collected 729 | 281 448 . Remotely . | . . . Salvage Created 561 | 83 478 . Parts 47 | 1 46 . Haulers Intercepted 1 | . 1 . Recyclers Shooed 1 | . 1 . Parts Field Recycled . | . . . Retrieved Matter . | . . . Parts Self-Destructed . | . . . Prevented . | . . . Kills | -11 -10 -10 ------- Run | Yrd Mat Min Combat Hostiles Destroyed 11 | . 11 . Guns 11 | . 11 . Classes Destroyed 6 | 1 5 . Hauler 1 | . 1 . Recycler 2 | 1 1 . Operator 1 | . 1 . Watcher 3 | . 3 . Swarmer 5 | . 5 . Grunt 6 | . 6 . Best Kill Streak 2 | 1 2 . Combat Bots Only 2 | . 2 . Max Kills in Single Turn 1 | 1 1 . Gunslinging . | . . . Exploded . | . . . Melee . | . . . Uniques/NPCs Destroyed . | . . . Combat | -11 -10 -10 -------- Run | Yrd Mat Min Hostile Shots Fired 122 | . 99 23 Missed 40 | . 34 6 Damage Taken 893 | . 757 136 Core 250 | . 216 34 Absorbed by Shields . | . . . Core Remaining (%) 100 | 100 . . Volleys Fired 72 | 4 61 7 Largest 2 | 2 2 1 Hottest 40 | 40 40 20 Shots Fired 126 | 8 111 7 Gun 126 | 8 111 7 Cannon . | . . . Launcher . | . . . Special . | . . . Kinetic 126 | 8 111 7 Thermal . | . . . Explosive . | . . . Electromagnetic . | . . . Robot Hit Streak 8 | 2 6 8 Robot Miss Streak 8 | 1 8 1 Penetration Max . | . . . Secondary Targets . | . . . Shots Hit Robots 63 | 4 53 6 Core Hits 32 | 2 29 1 Critical Kills . | . . . Critical Parts Destroyed . | . . . Critical Strikes . | . . . Melee Attacks . | . . . Impact . | . . . Slashing . | . . . Piercing . | . . . Sneak Attacks . | . . . Combat Hostiles . | . . . Follow-up Attacks . | . . . Damage Inflicted 741 | 45 647 49 Guns 728 | 45 634 49 Cannons . | . . . Explosions . | . . . Melee . | . . . Ramming 13 | . 13 . Kinetic 728 | 45 634 49 Thermal . | . . . Explosive . | . . . Electromagnetic . | . . . Impact . | . . . Slashing . | . . . Piercing . | . . . Highest Corruption . | . . . Average Corruption . | . . . Corruption Purged . | . . . Corruption Blocked . | . . . Overload Shots . | . . . Overflow Damage . | . . . Projectiles . | . . . Explosions . | . . . Melee . | . . . Knockbacks . | . . . Impact . | . . . Kinetic . | . . . Secondary . | . . . Self-Inflicted Damage . | . . . Shots . | . . . Rammed . | . . . Targets Rammed 6 | . 6 . Kicked 6 | . 6 . Crushed . | . . . Highest Temperature 20 | . 20 . Average Temperature 5 | . 5 . Received Heat Transfer 345 | . 345 . Siege Activations . | . . . Robots Corrupted . | . . . Combat Hostiles . | . . . Parts Fried . | . . . Impact Corruptions . | . . . Robots Melted . | . . . Combat Hostiles . | . . . Parts Melted . | . . . Heat Transferred . | . . . Parts Sabotaged . | . . . Parts Stolen . | . . . Parts Stripped . | . . . Power Chain Reactions . | . . . Alert | -11 -10 -10 ------- Run | Yrd Mat Min Peak Influence 213 | 5 213 43 Initial 28 | . 3 28 Average 97 | 1 105 41 Maximum Alert Level 1 | . 1 . Low Security (%) 95 | 100 94 100 Level 1 4 | . 5 . Level 2 . | . . . Level 3 . | . . . Level 4 . | . . . Level 5 . | . . . High Security . | . . . Max Security . | . . . Squads Dispatched 2 | . 2 . Investigation 1 | . 1 . Extermination . | . . . Reinforcement 1 | . 1 . Assault . | . . . Garrison . | . . . Intercept . | . . . Searches Triggered . | . . . Construction Impeded . | . . . Haulers Reinforced . | . . . Active Scanning Responses . | . . . Cargo Convoy Interrupts . | . . . Stealth | -11 -10 -10 --------- Run | Yrd Mat Min Distress Signals 1 | . 1 . Communications Jammed . | . . . Distress Signals . | . . . Times Spotted 26 | . 23 3 Peak Tracking Total 4 | . 4 3 Tactical Retreats 3 | . 3 . Traps | -11 -10 -10 ------- Run | Yrd Mat Min Traps Triggered 3 | . 3 . Indirectly . | . . . Trap Hack Attempts . | . . . Triggered . | . . . Disarmed . | . . . Reprogrammed . | . . . Reused . | . . . Traps Extracted . | . . . Installed . | . . . Triggered . | . . . Machines | -11 -10 -10 ---------- Run | Yrd Mat Min Machines Disabled . | . . . Max in Single Turn . | . . . Machines Repaired . | . . . Machines Dismantled . | . . . Machines Sabotaged . | . . . Overloaded Fab Kills . | . . . Hacking | -11 -10 -10 --------- Run | Yrd Mat Min Machines Accessed 2 | . 2 . Terminals 2 | . 2 . Fabricators . | . . . Repair Stations . | . . . Recycling Units . | . . . Scanalyzers . | . . . Garrison Access . | . . . Total Hacks 6 | . 6 . Successful 4 | . 4 . Failed 2 | . 2 . Catastrophic . | . . . Database Lockouts . | . . . Manual 1 | . 1 . Terminals 6 | . 6 . Fabricators . | . . . Repair Stations . | . . . Recycling Units . | . . . Scanalyzers . | . . . Garrison Access . | . . . Terminal Hacks 4 | . 4 . Alert Level 1 | . 1 . Surveillance Status 1 | . 1 . Zone Layout 2 | . 2 . Fabricator Hacks . | . . . Repair Station Hacks . | . . . Recycling Unit Hacks . | . . . Scanalyzer . | . . . Garrison Access Hacks . | . . . Unauthorized Hacks . | . . . Terminals . | . . . Fabricators . | . . . Repair Stations . | . . . Recycling Units . | . . . Scanalyzers . | . . . Garrison Access . | . . . Data Cores Recovered . | . . . Used . | . . . Hacking Detections 1 | . 1 . Full Trace Events 1 | . 1 . Feedback Events . | . . . Feedback Blocked . | . . . Robot Schematics Acquired . | . . . Robots Built . | . . . Authchips . | . . . Time . | . . . Total Robot Build Rating . | . . . Part Schematics Acquired . | . . . Parts Built . | . . . Authchips . | . . . Time . | . . . Total Part Build Rating . | . . . Parts Repaired . | . . . Time . | . . . Parts Recycled . | . . . Recycled Matter . | . . . Retrieved Matter . | . . . Retrieved Components . | . . . Parts Scanalyzed . | . . . Part Schematics Acquired . | . . . Parts Damaged . | . . . Bothacking | -11 -10 -10 ------------ Run | Yrd Mat Min Used RIF Installer . | . . . Robots Hacked . | . . . Non-combat . | . . . Combat . | . . . Robot Hacks Applied . | . . . Relay Couplers Released . | . . . Fabnet Peak Effective % . | . . . Robots Rewired . | . . . Allies Hacked . | . . . Hacks Repelled . | . . . Allies | -11 -10 -10 -------- Run | Yrd Mat Min Total Allies . | . . . Largest Group . | . . . Highest-Rated Group . | . . . Highest-Rated Ally . | . . . Total Orders . | . . . Ally Attacks . | . . . Total Damage . | . . . Kills . | . . . Allies Corrupted . | . . . Allies Melted . | . . . Intel | -11 -10 -10 ------- Run | Yrd Mat Min Robot Analysis Total . | . . . Derelict Logs Recovered . | . . . Drone Launches . | . . . Drone Recoveries . | . . . Exploration | -11 -10 -10 ------------- Run | Yrd Mat Min Turns Passed 1060 | 76 971 13 Spaces Moved 655 | 43 611 1 Core 10 | 10 . . Treads . | . . . Legs 645 | 33 611 1 Wheels . | . . . Hover . | . . . Flight . | . . . Fastest Speed 50 | 50 120 120 Average Speed 120 | 124 120 120 Slowest Speed 200 | 200 190 120 Overloaded Moves . | . . . Propulsion Burnouts . | . . . Robots Hopped . | . . . Cave-ins Triggered . | . . . Exploration Rate (%) 25 | 4 65 7 Regions Visited 2 Branch Regions 1 Pre-discovered Areas . | . . . Known Exits Taken . | . . . Unknown Exits Taken 2 | 1 1 . Scrap Searched . | . . . Spaces Dug . | . . . Terrain Destroyed . | . . . Melee . | . . . Projectile . | . . . AOE . | . . . Terrain Rammed . | . . . Walls Destroyed . | . . . Machines Disabled . | . . . Actions | -11 -10 -10 --------- Run | Yrd Mat Min Total 795 | 54 733 8 Wait 32 | . 32 . Move 653 | 42 610 1 Hop . | . . . Pick Up 6 | 2 4 . Fast Attach 14 | 6 8 . Attach 1 | . 1 . Detach . | . . . Swap 6 | . 6 . Drop 5 | . 5 . Fire 72 | 4 61 7 Melee . | . . . Ram . | . . . Kick 6 | . 6 . Crush . | . . . Escape Stasis . | . . . Rewire . | . . . Trap . | . . . Miscellaneous . | . . . Route ------- -11/Scrapyard -10/Materials (discovered 4 exits: [*Mat x2] / [*Min] / [*Sub]) -10/Mines History --------- Turn | Location | Event 20 | -11/Scrapyard | Discovered new exit (range 15) 77 | -11/Scrapyard | Entered Materials 306 | -10/Materials | Build established: Mutant 353 | -10/Materials | Discovered new exit (range 3) 588 | -10/Materials | Discovered new exit (range 14) 784 | -10/Materials | Discovered new exit (range 17) 831 | -10/Materials | Core integrity fell below 50% 864 | -10/Materials | Lost 3 parts (1p2w) 891 | -10/Materials | Core integrity fell below 20% 1041 | -10/Materials | Discovered new exit (range 12) 1048 | -10/Materials | Entered Mines 1061 | -10/Mines | Destroyed by S-10 Pest with Light Assault Rifle Last Messages --------------- Aluminum Leg destroyed. G-34 Mercenary destroyed. K-01 Serf collects debris. K-01 Serf cleans the Matter Filter. Acquired 12 matter. K-01 Serf collects debris. Acquired Ion Engine. K-01 Serf collects debris. Acquired 33 matter. K-01 Serf collects debris. Dropped Aluminum Leg. Acquired Aluminum Leg. K-01 Serf collects debris. R-06 Scavenger collects Aluminum Leg. K-01 Serf cleans the Matter Filter. R-06 Scavenger collects Flight Unit. EXIT=FOUND LOCATION=UNKNOWN GOAL=ESCAPE Something is scanning the area. Map ----- +----------------------------------------------------+ | ??????????????????????????????????????????? | | ??????????????????????????????????????????? | | ??????????????????????????????????????????? | | ??????????????????????????????????????????? | | ??????????????????????????????????????????? | | ??????????????????????????????????????????? | | ??????????????????????????????????????????? | | ??????????????????????????????????????????? | | ??????????????????????????????????????????? | | ??????????????????????????????????????????? | | ??????????????????????????????????????????? | | ??????????????#???????????????????????????? | | ??????????????# ??????????????????????????? | | ??????????????# ??????????????????????????? | | ??????????????# ??????????????????????????? | | ?????????????## ??????????????????????????? | | ?????????????# ????##???????????????????? | | ????????????? ???? ???????????????????? | | ?????????????? ???? #???????????????????? | | ??????????????? #??# ##??????????????????? | | ??????????????? ## ##?????????????????? | | ???????????????? ##????????????????? | | ????????????????# ###??????????????? | | ????????????????# ##?????????????? | | ???????????????## s s ##????????????? | | ?????????????### @ #????????????? | | ?????????????# s #?????????? | | ?????????????## #?????????? | | ??????????????### #?????????? | | ????????????????###### ## ##?????????? | | ??????????????????????#####???##??????????? | | ??????????????????????????????????????????? | | ??????????????????????????????????????????? | | ??????????????????????????????????????????? | | ??????????????????????????????????????????? | | ??????????????????????????????????????????? | | ??????????????????????????????????????????? | | ??????????????????????????????????????????? | | | | | | | | | | | | | | | | | | | | | | | | | +----------------------------------------------------+ Best States ------------- Heat Dissipation 25 Energy Generation 10 Energy Capacity 250 Matter Stores 300 Matter Capacity 300 Sight Range 18 Terrain Scan Density 10 Evasion (%) 55 Offensive Hacking 10 Item Schematics ----------------- None Robot Schematics ------------------ None Fabricated ------------ Nothing Alien Tech Used ----------------- None Achievements -------------- None Challenges ------------ None Game ------ Seed HybridXenonScythe Manual? 0 Play Time 00:13:00 Cumulative 12.2 hours Start 2025.03.29 @ 21:14:09 End 2025.03.29 @ 21:28:29 Sessions 1 Manual Loads 0 Difficulty Rogue Special Mode None Game No. 29 Rogue 29 Adventurer 0 Explorer 0 Win Type - Total 0 Types 0/0/0/0/0/0/0/0/0 Lore% 4 Gallery% 16 Achievement% 15 Wizard Run 0 Options --------- Layout 1 ASCII 0 Keyboard 0 Movement Mouse Keybinds 0 Fullscreen 1 Font 24/Smallcaps Map View 50x35 Zoom Use 0% Tactical HUD 0 Map Filters NONE Filters NONE Steam 1 RUN: ed8c935d-649e-419e-bf4a-8b8fec5c9f53